{"text_format":"3","workbook":"xlsx","n_sheets":15,"sheets":["CAPTURA","CHEQUE CORTO","CHEQUE NVO","Orden sin recibo","orden con recibo","PAGARE","REGISTRO DE CHEQUES","Hoja13","CONCEPTO DE CHEQUE CHICO","PROVEEDORES","Transfer","Orden sin recibo TRANS","orden con recibo MODF","Hoja1","Hoja2"],"not_rendered":{"macros":1,"external_links":3,"defined_names":44,"comments":2},"read":"whole","date_system":"1900"}

{"sheet":"CAPTURA","index":0,"n_rows":18,"n_cols":3,"rows_kept":18}
[]
[]
[]
[null,"CHEQUE",158]
[null,"FECHA","2022-04-12"]
[null,"NOMBRE","EVELYN GUADALUPE MEZA CERVANTES"]
[null,"CANTIDAD",{"v":66739.4,"d":"66,739.40"}]
[null,"CONCEPTO","COMPLEMENTO DE NOMINA CORRESPONDIENTE A PRIMER QUINCENA DEL MES DE ABRIL 2022 ( PERSONAL QUE NO CUENTA CON TARJETA DE  COBRO ) PERIODO Nº 7"]
[null,"OBSERVACIONES"]
[null,"DEPARTAMENTO"]
[]
[]
[]
[]
[null,null,"                                                                      "]
[]
[]
[null,null," "]

{"sheet":"CHEQUE CORTO","index":1,"n_rows":25,"n_cols":3,"rows_kept":25,"merged":[[1,0,1,1],[2,0,2,3],[5,0,5,1],[16,0,16,1],[17,0,17,3],[20,0,20,1]]}
[" ",null,{"$f":"+CAPTURA!C5","v":"2022-04-12"}]
[{"$f":"+CAPTURA!C6","v":"EVELYN GUADALUPE MEZA CERVANTES"},null,{"$f":"+CAPTURA!C7","v":{"v":66739.4,"d":"66,739.40"}}]
[{"$f":"PesosMN(C2)","v":"( SESENTA Y SEIS MIL SETECIENTOS TREINTA Y NUEVE PESOS 40/100 M.N.)"}]
[" "]
[null,"  "]
[{"$f":"+CAPTURA!C8","v":"COMPLEMENTO DE NOMINA CORRESPONDIENTE A PRIMER QUINCENA DEL MES DE ABRIL 2022 ( PERSONAL QUE NO CUENTA CON TARJETA DE  COBRO ) PERIODO Nº 7"}]
[]
[]
[" "]
[null,{"$f":"A2","v":"EVELYN GUADALUPE MEZA CERVANTES"}]
[null,null,{"$f":"+C2","v":{"v":66739.4,"d":"66,739.40"}}]
[null,{"$f":"+CAPTURA!C4","v":158}]
[]
[]
[]
[]
[]
[" "]
[]
[]
[]
[]
[]
[]
[null,null,{"$f":"+C11","v":66739.4}]

{"sheet":"CHEQUE NVO","index":2,"n_rows":26,"n_cols":11,"rows_kept":26,"merged":[[0,0,0,2],[1,0,1,1],[2,0,2,3],[6,1,6,2],[7,0,7,1],[8,0,8,3],[13,0,16,3]]}
[{"$f":"+CAPTURA!C5","v":"2022-04-12"}]
[{"$f":"+CAPTURA!C6","v":"EVELYN GUADALUPE MEZA CERVANTES"},null,{"$f":"+CAPTURA!C7","v":{"v":66739.4,"d":"66,739.40"}}]
[{"$f":"PesosMN(C2)","v":"( SESENTA Y SEIS MIL SETECIENTOS TREINTA Y NUEVE PESOS 40/100 M.N.)"}]
[" "]
[]
[" "]
[null,{"$f":"A1","v":"2022-04-12"}]
[{"$f":"A2","v":"EVELYN GUADALUPE MEZA CERVANTES"},null,{"$f":"C2","v":{"v":66739.4,"d":"66,739.40"}}]
[{"$f":"PesosMN(C8)","v":"( SESENTA Y SEIS MIL SETECIENTOS TREINTA Y NUEVE PESOS 40/100 M.N.)"}]
[null,"CHEQUE",{"$nulls":8}," "]
[null,{"$f":"+CAPTURA!C4","v":158}]
[]
[]
[{"$f":"+CAPTURA!C8","v":"COMPLEMENTO DE NOMINA CORRESPONDIENTE A PRIMER QUINCENA DEL MES DE ABRIL 2022 ( PERSONAL QUE NO CUENTA CON TARJETA DE  COBRO ) PERIODO Nº 7"}]
{"$rows_empty":8}
[{"$f":"+A2","v":"EVELYN GUADALUPE MEZA CERVANTES"},null,{"$f":"+C2","v":{"v":66739.4,"d":"66,739.40"}}]
[]
[null,{"$f":"+B10","v":"CHEQUE"}]
[null,{"$f":"+B11","v":158}]

{"sheet":"Orden sin recibo","index":3,"n_rows":38,"n_cols":76,"rows_kept":38,"merged":[[5,10,6,10],[12,2,12,7],[16,2,16,7],[34,2,34,3],[34,5,34,7]]}
[]
[]
[]
[]
[]
[{"$nulls":3},"                                                                                          ",{"$nulls":6},"Numero de Cheque"]
[]
[{"$nulls":10},566]
[null,null,"                                           ",null," "]
[null,null,"      "]
[null,null,"                                                                                                                                                                                                                                                                                                                                                                                                                                                                                                                                                                                 "]
[null,"                                         ",{"$nulls":4},"      ",{"$f":"+VLOOKUP(F26,'REGISTRO DE CHEQUES'!A1:G4900,4,FALSE)","v":{"$error":"#N/A"}}]
[null,null,{"$f":"PesosMN(H12)","v":{"$error":"#VALUE!"}}]
[null,null,"                            ",null," "]
[null,"                        ","      ","                                 "," ",null,null," "]
[]
[null,null,{"$f":"+VLOOKUP(F26,'REGISTRO DE CHEQUES'!A1:G4900,5,FALSE)","v":{"$error":"#N/A"}}]
[{"$nulls":75},"Z"]
["  "]
[null,null,"            "]
[null,null,"      ",null," "]
[null,null,"     "]
[null,null,"                        "]
[null,null,"     "," "]
[null,null,"               ",null,null,"            "]
[null,null,"     ","CHEQUE",null,{"$f":"+VLOOKUP(K8,'REGISTRO DE CHEQUES'!A1:G4900,1,FALSE)","v":{"$error":"#N/A"}}]
[{"$nulls":4}," "]
[null,null,"      "," ",null," ",null,"                                                                                                                                                                                                                                                                                                                                                                         "]
[null,null,"     "]
[null,null,"      "]
[null,null,"       "]
[null,null,"      "]
[null,null,"      ",null,null," "]
[null,null,"                                  ",{"$nulls":4}," "]
[null,null,"IXTLAHUACAN DE LOS MEMBRILLOS, JAL. ",null,null,{"$f":"+VLOOKUP(F26,'REGISTRO DE CHEQUES'!A1:G4900,2,FALSE)","v":{"$error":"#N/A"}}]
[null,null,"          "]
[]
["LIC. ANTONIO COVARRUBIAS MEJIA"]

{"sheet":"orden con recibo","index":4,"n_rows":43,"n_cols":9,"rows_kept":43,"merged":[[1,8,2,8],[9,1,9,6],[14,0,14,3],[19,5,19,6],[20,5,20,6],[27,5,27,6],[28,1,28,6],[29,1,29,6],[31,3,31,6],[33,2,33,6],[35,1,35,6],[39,0,39,3],[39,4,39,5],[42,3,42,5]]}
[]
[{"$nulls":8},"Numero de Cheque"]
[]
[{"$nulls":8},566]
[]
[]
[{"$nulls":4},{"$f":"+VLOOKUP(E23,'REGISTRO DE CHEQUES'!A1:G4900,3,FALSE)","v":{"$error":"#N/A"}}]
[]
[{"$nulls":5},{"$f":"+VLOOKUP(E23,'REGISTRO DE CHEQUES'!A1:G4900,4,FALSE)","v":{"$error":"#N/A"}}]
[null,{"$f":"PesosMN(F9)","v":{"$error":"#VALUE!"}}]
[]
[{"$nulls":4},"  "]
[]
[]
["IXTLAHUACAN DE LOS MEMBRILLOS ",{"$nulls":4},{"$f":"+VLOOKUP(E23,'REGISTRO DE CHEQUES'!A1:G4900,2,FALSE)","v":{"$error":"#N/A"}}]
[]
[]
[]
[]
[]
["LIC. ANTONIO COVARRUBIAS MEJIA"]
[]
[{"$nulls":4},{"$f":"+VLOOKUP(I4,'REGISTRO DE CHEQUES'!A1:G4900,1,FALSE)","v":{"$error":"#N/A"}}]
[]
[]
[]
[{"$nulls":5},{"$f":"F9","v":{"$error":"#N/A"}}]
[]
[null,"IXTLAHUACAN DE LOS MEMBRILLOS, JALISCO"]
[]
[null,null," "]
[null,{"$f":"F9","v":{"$error":"#N/A"}},null,{"$f":"B10","v":{"$error":"#VALUE!"}}]
[]
[]
[]
[null,{"$f":"+VLOOKUP(E23,'REGISTRO DE CHEQUES'!A1:G4900,5,FALSE)","v":{"$error":"#N/A"}}]
[]
[]
[]
["IXTLAHUACAN DE LOS MEMBRILLOS",{"$nulls":3},{"$f":"+F15","v":{"$error":"#N/A"}}]
["  "]
[]
[{"$nulls":3},{"$f":"E7","v":{"$error":"#N/A"}}]

{"sheet":"PAGARE","index":5,"n_rows":11,"n_cols":15,"rows_kept":11,"merged":[[1,0,1,1],[1,4,1,9],[1,12,1,14],[2,7,2,8],[2,13,2,14],[3,2,3,10],[5,0,5,14],[7,2,7,8],[7,10,7,13],[8,1,8,6],[8,7,8,14],[9,1,9,9],[10,1,10,6]]}
[]
[{"$nulls":4},{"$f":"+CAPTURA!C4","v":158},{"$nulls":7},{"$f":"+CAPTURA!C7","v":{"v":66739.4,"d":"66,739.40"}}]
[]
[null,null,"SISTEMA ADMINISTRATIVO DE AGUA POTABLE Y ALCANTARILLADO "]
[]
[{"$f":"PesosMN(M2)","v":"( SESENTA Y SEIS MIL SETECIENTOS TREINTA Y NUEVE PESOS 40/100 M.N.)"}]
[]
[null,null,"IXTLAHUACAN DE LOS MEMBRILLOS ",{"$nulls":6},{"$f":"+DAY(CAPTURA!C5)","v":12},{"$f":"TEXT(CAPTURA!C5,\"MMMM\")","v":"abril"},{"$nulls":3},{"$f":"+YEAR(CAPTURA!C5)","v":2022}]
[null,{"$f":"+CAPTURA!C6","v":"EVELYN GUADALUPE MEZA CERVANTES"}]
[null,{"$f":"+CAPTURA!C9","v":0}]
[null,{"$f":"+CAPTURA!C10","v":0}]

{"sheet":"REGISTRO DE CHEQUES","index":6,"n_rows":971,"n_cols":8,"rows_kept":971}
["CHEQUE","FECHA","NOMBRE","CANTIDAD","CONCEPTO","OBSERVACIONES","DEPARTAMENTO","ESTADO DE CHEQUE "]
[141,"2022-01-28","FRANCISCO JAVIER HERRERA ENCISO",{"v":12864.4,"d":"$12,864.40"},"ACEITE Y ACCESORIOS PARA LOS DIFERENTES VEHICULOS ASIGNADOS A  SAMAPA"]
[142,"2022-01-28","JOSE CARLOS GUTIERREZ FLORES",{"v":3567,"d":"$3,567.00"},"MATERIAL SOLICITADO PARA REPARACIONES VARIAS EN LA LOCALIDAD DE ATEQUIZA Y LOMAS DE ATEQUIZA"]
[143,"2022-01-28","MARIA TERESA RAMIREZ ROSAS","CANCELADO","MATERIAL SOLICITADO PARA EL MANTENIMIENTO DE LOS TRENES DE DESCARGA DE CADA UNO DE LOS POZOS DE ESTA CABECERA MUNICIPAL"]
[144,"2022-01-28","FRANCISCO JAVIER HERRERA ENCISO",{"v":499.99,"d":"$499.99"},"LLANTA DE MEDIO USO PARA CAMIONETA NISSAN ASIGNADA A SAMAPA"]
[145,"2022-01-28","EVELYN GUADALUPE MEZA CERVANTES",{"v":74669.8,"d":"$74,669.80"},"COMPLEMENTO DE NOMINA CORRESPONDIENTE A LA SEGUNDA QUINCENA DEL MES DE ENERO 2022, PERIODO Nº 2 ( PERSONAL QUE NO CUENTA CON TARJETA DE COBRO )"]
[146,"2022-01-28","JOSE DEMETRIO RINCON CERVANTES",{"v":2000,"d":"$2,000.00"},"CUBRIO A OPERARDOR DE FUENTE DE ABASTECIMIENTO DEL FRACCIONAMIENTO CASAS BALI, EN EL PERIODO Nº 2 DEL MES DE ENERO 2022"]
[147,"2022-01-31","VERONICA CELIS CHAVEZ",{"v":500,"d":"$500.00"},"APOYO POR OPERAR FUENTE DE ABASTECIMIENTO DE LA LOCALID DE SANTA ANA DE LOS CEDROS, EN EL PERIODO N°2 DEL MES DE ENERO 2022"]
[148,"2022-02-01","MA MICAELA NUÑEZ FRIAS",{"v":2000,"d":"$2,000.00"},"CUBRIO VACACIONES DEL 2° PERIODO 2021 DE SANTIAGO GUERRA IBARRA COMISIONADO DE AYUNTAMIENTO Y OPERADOR DE FUENTE DE ABASTECIMIENTO DE LUIS GARCIA"]
[149,"2022-02-03","RODOLFO SOSA GARCIA",{"v":29000,"d":"$29,000.00"},"VERIFICACION DE LAS INSTALACIONES ELECTRICAS CON BASE A LA NOM-001-SEDE-2012 DELPOZO DE LA LOCALIDAD DEL AGUACATE Y DE LA PTAR CAMINO A LA CAPILLA ( POLESA )"]
[150,"2022-02-04","CARLOS ALBERTO GUTIERREZ MARTINEZ",{"v":2760,"d":"$2,760.00"},"MATERIAL SOLICITADO PARA AREA TECNICA Y MANO DE OBRA DE INSTALACION DE ACCESORIOS A  VEHIULOS SAMAPA"]
[151,"2022-02-04","MIGUEL ANGEL ZARAGOZA ZARAGOZA",{"v":2000,"d":"$2,000.00"},"PRESTAMO PERSONAL A EMPLEADO SAMAPA","VICENTE GUERRERO # 142","IXTLAHUACAN"]
[152,"2022-02-10","CESAR BONIFACIO CASTAÑEDA MEJIA",{"v":2000,"d":"$2,000.00"},"PRESTAMO PERSONAL AEMPLEADO SAMAPA","HUITLACOCHE # 55","LAS AGUILILLAS"]
[153,"2022-02-15","EVELYN GUADALUPE MEZA CERVANTES",{"v":83849,"d":"$83,849.00"},"COMPLEMENTO DE NOMINA CORRESPONDIENTE A PRIMER QUINCENA DEL MES DE FEBRERO 2022 ( PERSONAL QUE NO CUENTA CON TARJETA DE  COBRO ) PERIODO Nº 3"]
[154,"2022-02-25","EVELYN GUADALUPE MEZA CERVANTES",{"v":85481,"d":"$85,481.00"},"COMPLEMENTO DE NOMINA CORRESPONDIENTE A SEGUNDA QUINCENA DEL MES DE FEBRERO 2022 ( PERSONAL QUE NO CUENTA CON TARJETA DE  COBRO ) PERIODO Nº 4"]
[155,"2022-03-15","EVELYN GUADALUPE MEZA CERVANTES",{"v":78167.2,"d":"$78,167.20"},"COMPLEMENTO DE NOMINA CORRESPONDIENTE A PRIMER QUINCENA DEL MES DE MARZO 2022 ( PERSONAL QUE NO CUENTA CON TARJETA DE  COBRO ) PERIODO Nº 5"]
[156,"2022-03-29","EVELYN GUADALUPE MEZA CERVANTES",{"v":58813.2,"d":"$58,813.20"},"COMPLEMENTO DE NOMINA CORRESPONDIENTE A SEGUNDA QUINCENA DEL MES DE MARZO 2022 ( PERSONAL QUE NO CUENTA CON TARJETA DE  COBRO ) PERIODO Nº 6"]
[157,"2022-03-12","EVELYN GUADALUPE MEZA CERVANTES","CANCELADO","COMPLEMENTO DE NOMINA CORRESPONDIENTE A PRIMER QUINCENA DEL MES DE ABRIL 2022 ( PERSONAL QUE NO CUENTA CON TARJETA DE  COBRO ) PERIODO Nº 7"]
[158,"2022-04-12","EVELYN GUADALUPE MEZA CERVANTES",{"v":66739.4,"d":"$66,739.40"},"COMPLEMENTO DE NOMINA CORRESPONDIENTE A PRIMER QUINCENA DEL MES DE ABRIL 2022 ( PERSONAL QUE NO CUENTA CON TARJETA DE  COBRO ) PERIODO Nº 7"]
{"$rows_empty":730}
[{"$nulls":3},{"$f":"SUM(D711:D722)","v":0}]
{"$rows_empty":220}
[{"$nulls":6},"AREA TECNICA"]

{"sheet":"Hoja13","index":7,"n_rows":0,"n_cols":0,"rows_kept":0}

{"sheet":"CONCEPTO DE CHEQUE CHICO","index":8,"n_rows":1,"n_cols":1,"rows_kept":1,"hidden":true}
["CONCEPTOS DE PAGO"]

{"sheet":"PROVEEDORES","index":9,"n_rows":25,"n_cols":1,"rows_kept":25}
["ARCENIO GOMEZ GUTIERREZ"]
["CFE SUMINISTRADOR DE SERVICIOS BASICOS "]
["ELECTRICA 2004 SA DE CV"]
["EMILIO GONZALEZ DELGADILLO"]
["FELICIANO GARCIA PEREZ"]
["FELIPE HERRERA ENCISO"]
["FRANCISCO JAVIER HERRERA ENCISO"]
["JOSE AGUSTIN JIMENEZ GUERRERO"]
["JESUS ALEJANDRO FLORES BERNARDO"]
["JORGE ANDRES MANCILLA CASTILLO"]
["JOSE VICENTE ROMERO RUIZ"]
["MAURO GOMEZ CORDOVA"]
["RODRIGUEZ VELASCO ALEJANDRO"]
["TUBERIAS Y CONEXIONES DEL LAGO SA DE CV"]
["SERGIO HERRERA ENCISO"]
["TECNOELECTRICA NACIONAL S.A. DE C.V."]
["CINDY CACHUA VILLA"]
["ARTEMIA LOPEZ MONTER"]
["ALBERTO HERNANDEZ VELAZQUEZ"]
["COMERCIALIZADORA INDUSTRIAL DE ZAPOPAN SA DE CV"]
["RIVERA TORRES JESSICA MONTSERRAT"]
["TELEFONIA POR CABLE SA DE CV"]
["IRENE CERVANTES MANDUJANO"]
["MARCELO MARTINEZ NOLASCO"]
["LAMAS INFANTE GUILLERMO"]

{"sheet":"Transfer","index":10,"n_rows":38,"n_cols":76,"rows_kept":38,"merged":[[4,10,5,10],[12,2,12,7],[16,2,16,7],[34,2,34,3],[34,5,34,7]]}
[]
[]
[]
[]
[{"$nulls":3},"                                                                                          ",{"$nulls":6},"Numero de Cheque"]
[]
[{"$nulls":10},452036]
[]
[null,null,"                                           ",null," "]
[null,null,"      "]
[null,null,"                                                                                                                                                                                                                                                                                                                                                                                                                                                                                                                                                                                 "]
[null,"                                         ",{"$nulls":4},"      ",{"$f":"+VLOOKUP(F26,'REGISTRO DE CHEQUES'!A1:G4900,4,FALSE)","v":{"$error":"#N/A"}}]
[null,null,{"$f":"PesosMN(H12)","v":{"$error":"#VALUE!"}}]
[null,null,"                            ",null," "]
[null,"                        ","      ","                                 "," ",null,null," "]
[]
[null,null,{"$f":"+VLOOKUP(F26,'REGISTRO DE CHEQUES'!A1:G4900,5,FALSE)","v":{"$error":"#N/A"}}]
[{"$nulls":75},"Z"]
["  "]
[null,null,"            "]
[null,null,"      ",null," "]
[null,null,"     "]
[null,null,"                        "]
[null,null,"     "," "]
[null,null,"               ",null,null,"            "]
[null,null,"     ","Transferencia",null,{"$f":"+VLOOKUP(K7,'REGISTRO DE CHEQUES'!A1:G4900,1,FALSE)","v":{"$error":"#N/A"}}]
[{"$nulls":4}," "]
[null,null,"      "," ",null," ",null,"                                                                                                                                                                                                                                                                                                                                                                         "]
[null,null,"     "]
[null,null,"      "]
[null,null,"       "]
[null,null,"      "]
[null,null,"      ",null,null," "]
[null,null,"                                  ",{"$nulls":4}," "]
[null,null,"IXTLAHUACAN DE LOS MEMBRILLOS, JAL. ",null,null,{"$f":"+VLOOKUP(F26,'REGISTRO DE CHEQUES'!A1:G4900,2,FALSE)","v":{"$error":"#N/A"}}]
[null,null,"          "]
[]
["LIC ANTONIO COVARRUBIAS MEJIA"]

{"sheet":"Orden sin recibo TRANS","index":11,"n_rows":38,"n_cols":76,"rows_kept":38,"merged":[[5,10,6,10],[12,2,12,7],[16,2,16,7],[34,2,34,3],[34,5,34,7]]}
[]
[]
[]
[]
[]
[{"$nulls":3},"                                                                                          ",{"$nulls":6},"Numero de Cheque"]
[]
[]
[null,null,"                                           ",null," "]
[null,null,"      "]
[null,null,"                                                                                                                                                                                                                                                                                                                                                                                                                                                                                                                                                                                 "]
[null,"                                         ",{"$nulls":4},"      ",{"v":1520,"d":"1,520.00"}]
[null,null,{"$f":"PesosMN(H12)","v":"( UN MIL QUINIENTOS VEINTE PESOS 00/100 M.N.)"}]
[null,null,"                            ",null," "]
[null,"                        ","      ","                                 "," ",null,null," "]
[]
[null,null,"PAGO DE GASOLINA DEL LA SEMAN DEL 26 AL 31 DE ENERO DEL 2018"]
[{"$nulls":75},"Z"]
["  "]
[null,null,"            "]
[null,null,"      ",null," "]
[null,null,"     "]
[null,null,"                        "]
[null,null,"     "," "]
[null,null,"               ",null,null,"            "]
[null,null,"     ","TRANSFERENCIA",null,25369]
[{"$nulls":4}," "]
[null,null,"      "," ",null," ",null,"                                                                                                                                                                                                                                                                                                                                                                         "]
[null,null,"     "]
[null,null,"      "]
[null,null,"       "]
[null,null,"      "]
[null,null,"      ",null,null," "]
[null,null,"                                  ",{"$nulls":4}," "]
[null,null,"IXTLAHUACAN DE LOS MEMBRILLOS, JAL. ",null,null,"2018-02-03"]
[null,null,"          "]
[]
["LIC. ANTONIO COVARRUBIAS MEJIA"]

{"sheet":"orden con recibo MODF","index":12,"n_rows":43,"n_cols":9,"rows_kept":43,"merged":[[1,8,2,8],[9,1,9,6],[14,0,14,3],[19,5,19,6],[20,5,20,6],[27,5,27,6],[28,1,28,6],[29,1,29,6],[31,3,31,6],[33,2,33,6],[35,1,35,6],[39,0,39,3],[39,4,39,5],[42,3,42,5]]}
[]
[{"$nulls":8},"Numero de Cheque"]
[]
[]
[]
[]
[{"$nulls":4},"ALEJANDRO"]
[]
[{"$nulls":5},{"v":5220,"d":"5,220.00"}]
[null,{"$f":"PesosMN(F9)","v":"( CINCO MIL DOSCIENTOS VEINTE PESOS 00/100 M.N.)"}]
[]
[{"$nulls":4},"  "]
[]
[]
["IXTLAHUACAN DE LOS MEMBRILLOS ",{"$nulls":4},"2018-02-02"]
[]
[]
[]
[]
[]
["LIC. ANTONIO COVARRUBIAS MEJIA"]
[]
[{"$nulls":4},1234]
[]
[]
[]
[{"$nulls":5},{"$f":"F9","v":{"v":5220,"d":"5,220.00"}}]
[]
[null,"IXTLAHUACAN DE LOS MEMBRILLOS, JALISCO"]
[]
[null,null," "]
[null,{"$f":"F9","v":{"v":5220,"d":"5,220.00"}},null,{"$f":"B10","v":"( CINCO MIL DOSCIENTOS VEINTE PESOS 00/100 M.N.)"}]
[]
[]
[]
[null,"NOMINA"]
[]
[]
[]
["IXTLAHUACAN DE LOS MEMBRILLOS",{"$nulls":3},{"$f":"+F15","v":"2018-02-02"}]
["  "]
[]
[{"$nulls":3},{"$f":"E7","v":"ALEJANDRO"}]

{"sheet":"Hoja1","index":13,"n_rows":4,"n_cols":1,"rows_kept":4}
["CUANTO SE HA GASTADO"]
[]
[]
["ENERO"]

{"sheet":"Hoja2","index":14,"n_rows":41,"n_cols":1,"rows_kept":41}
["JOSE VICENTE ROMERO RUIZ"]
["CARLOS ORTIZ ZAMORA"]
["EMILIO GONZALEZ DELGADILLO "]
["JORGE ANDRES MANCILLA CASTILLO"]
["FELIPE HERRERA ENCISO"]
["JUAN MIGUEL TREJO ROMERO"]
["ARTEMIA LOPEZ MONTER"]
["CFE SUMINISTRADOR DE SERVICIOS BASICOS "]
["COMERCIALIZADORA INDUSTRIAL DE ZAPOPAN SA DE CV"]
["ALBERTO HERNANDEZ VELAZQUEZ"]
["RIVERA TORRES JESSICA MONTSERRAT"]
["RODRIGUEZ VELASCO ALEJANDRO"]
["TUBERIAS Y CONEXIONES DEL LAGO"]
["EFRAIN ESTRADA MEJIA"]
["JESUS ALEJANDRO FLORES BERNARDO"]
["JOSE CARLOS GUTIERREZ FLORES"]
["ANTONIO COVARRUBIAS MEJIA"]
["MAURO GOMEZ CORDOVA"]
["FELICIANO GARCIA PEREZ"]
["FRANCISCO JAVIER HERRERA ENCISO"]
["MARCO ANTONIO RAMIREZ BRAVO "]
["GONZALO BEJARANO LECHUGA"]
["JOSE ANTONIO CONTRERAS LOPEZ"]
["ALEJANDRA SANCHEZ VILLASEÑOR "]
["TUBERIAS Y CONEXIONES DEL LAGO SA DE CV"]
["MARCO ANTONIO RAMIREZ BRAVO"]
["ALEJANDRO RODRIGUEZ VELASCO"]
["GUILLERMO MORA ARANA"]
["SERGIO RAMOS REYES "]
["VAZQUEZ CORONA LETICIA"]
["RAFAEL CORTES HERNANDEZ"]
["APOLONIO BECERRA RAUDA"]
["TECNOELECTRICA NACIONAL SA DE CV"]
["RITA ZUÑIGA LOPEZ"]
["BENJAMIN ALMADA LEMUS "]
["MARIA ALONDRA BARRERA CONTRERAS"]
["ARCENIO GOMEZ GUTIEREZ"]
["RAUL PEREZ LAZCANO"]
["ELECTRICA 2004 SA DE CV"]
["RODRIGUEZ  VELASCO ALEJANDRO"]
["INGENIERIA EN EDIFICACIONES, CAMINOS Y ESTRUCTURAS SA DE CV"]